bitfinex-derivatives/quotes_ETHF0:USTF0_20250505
["timestamp","ask_amount","ask_price","bid_price","bid_amount"]
[1746421087352,3.2562,1804.9,1804.8,1.83345614]
[1746421088357,4.36423,1804.9,1804.8,1.83345614]
[1746421088557,3.2562,1804.9,1804.8,1.83345614]
[1746421089362,3.2562,1804.9,1804.8,1.10808]
[1746421089655,3.2562,1804.9,1804.8,1.83420997]
[1746421089853,3.2562,1804.9,1804.8,1.10808]
[1746421091758,3.2562,1804.9,1804.8,2.81748]
[1746421093162,6.92699052,1805.2,1805.1,1.10791]
[1746421093361,9.43999052,1805.2,1805.1,1.10791]
[1746421093564,9.43999052,1805.2,1805.0,1.10793]
[1746421093861,1.717,1805.1,1805.0,1.10793]
[1746421094658,2.5773,1805.1,1805.0,1.10793]
[1746421097365,1.717,1805.1,1805.0,4.31573]
[1746421097564,0.8217,1805.3,1805.2,1.10785]
[1746421098568,2.4305,1805.3,1805.2,1.10785]
[1746421104171,2.4305,1805.3,1805.2,1.83476205]
[1746421106075,2.43596766,1805.3,1805.2,1.83476205]
[1746421109578,3.54375766,1805.3,1805.2,1.83476205]
[1746421110073,2.43596766,1805.3,1805.2,1.83476205]
[1746421110273,0.00546766,1805.3,1805.2,10.36076205]
[1746421110572,9.19621467,1805.9,1805.7,1.1075]
[1746421110767,2.5162,1805.8,1805.7,4.6335]
[1746421111475,2.5162,1805.8,1805.7,5.35838527]
[1746421120586,3.62368,1805.8,1805.7,4.25088527]
[1746421121183,3.62368,1805.8,1805.7,5.35842527]
[1746421121379,2.5162,1805.8,1805.7,5.35842527]
[1746421122091,3.62368,1805.8,1805.7,5.35842527]
[1746421124392,3.62368,1805.8,1805.7,4.63354]
[1746421124694,1.10745,1805.9,1805.8,1.10748]
[1746421124992,3.54445,1805.9,1805.8,1.10748]
[1746421126195,1.10748,1805.8,1805.7,4.63351]
[1746421126388,1.6847,1805.8,1805.7,4.63351]
[1746421129700,1.6847,1805.8,1805.7,5.35900064]
[1746421130095,2.79218,1805.8,1805.7,5.35900064]
[1746421130603,2.79218,1805.8,1805.7,4.25149064]
[1746421131103,2.79218,1805.8,1805.7,5.35903064]
[1746421134105,2.79218,1805.8,1805.7,4.25149064]
[1746421135205,2.79218,1805.8,1805.7,5.35903064]
[1746421138908,1.6847,1805.8,1805.7,5.35903064]
[1746421139810,2.79218,1805.8,1805.7,5.35903064]
[1746421140212,2.79218,1805.8,1805.7,4.25149064]
[1746421141112,2.79218,1805.8,1805.7,5.35903064]
[1746421143613,2.79218,1805.8,1805.7,4.25149064]
[1746421144207,2.79218,1805.8,1805.7,5.35903064]
[1746421145011,2.79218,1805.8,1805.7,4.25149064]
[1746421146111,2.79218,1805.8,1805.7,3.526]
[1746421146308,2.79218,1805.8,1805.7,4.25369444]
[1746421146616,5.99998,1805.8,1805.7,4.25369444]
[1746421146912,5.99998,1805.8,1805.7,0.72769444]
[1746421149515,10.99998,1805.8,1805.7,0.72769444]
[1746421149914,1.10767,1805.5,1805.4,7.83952]
[1746421150413,1.10767,1805.5,1805.4,8.56709278]
[1746421151114,2.81447,1805.5,1805.4,8.56709278]
[1746421151314,2.81447,1805.5,1805.4,7.45937278]
[1746421155008,2.81447,1805.5,1805.4,8.56710278]
[1746421155209,1.10767,1805.5,1805.4,8.56710278]
[1746421155408,2.71197,1805.5,1805.4,8.56710278]
[1746421160814,1.6043,1805.5,1805.4,8.56710278]
[1746421161819,2.71197,1805.5,1805.4,8.56710278]
[1746421163015,3.53167,1805.5,1805.4,8.56710278]
[1746421165523,3.53167,1805.5,1805.4,7.45937278]
[1746421166622,3.53167,1805.5,1805.4,8.56710278]
[1746421168321,3.53167,1805.5,1805.4,5.35930278]
[1746421168718,3.53167,1805.5,1805.4,4.25157278]
[1746421169525,3.53167,1805.5,1805.4,0.72757278]
[1746421171527,3.53167,1805.5,1805.4,1.83530278]
[1746421181034,3.53167,1805.5,1805.4,0.72757278]
[1746421181431,6.73947,1805.5,1805.4,0.72757278]
[1746421200353,12.55857052,1805.5,1805.4,0.72757278]
[1746421200851,1.10785,1805.2,1805.1,6.7328]
[1746421201053,1.10785,1805.2,1805.1,3.2078]
[1746421201253,4.40461,1805.3,1805.1,3.93552535]
[1746421201453,4.40461,1805.3,1805.2,1.10785]
[1746421201654,4.40461,1805.3,1805.2,3.55777535]
[1746421202044,4.40461,1805.3,1805.2,2.44992535]
[1746421202356,12.61241,1805.3,1805.2,0.72772535]
[1746421202654,1.10797,1805.0,1804.9,7.34700198]
[1746421202850,4.31577,1805.0,1804.9,7.34700198]
[1746421203054,10.13487052,1805.0,1804.9,7.34700198]
[1746421203254,12.60567052,1805.0,1804.9,7.34700198]
[1746421203448,13.41007052,1805.0,1804.9,7.34700198]
[1746421203850,1.10803,1804.9,1804.8,7.34700198]
[1746421204153,2.77113,1804.9,1804.8,7.34700198]
[1746421205060,2.77113,1804.9,1804.8,6.11540198]
[1746421207053,1.10816,1804.7,1804.6,2.5654]
[1746421207660,2.77176,1804.7,1804.6,2.5654]
[1746421207953,3.62006,1804.7,1804.6,2.5654]
[1746421208654,2.5119,1804.7,1804.6,3.67362]
[1746421208951,1.6636,1804.7,1804.6,3.67362]
[1746421209251,3.2078,1804.8,1804.6,2.5654]
[1746421209450,1.6614,1804.9,1804.8,1.1081]
[1746421209758,1.93433,1805.1,1804.8,1.10806]
[1746421209946,1.6614,1804.9,1804.8,1.6865]
[1746421210352,1.6614,1804.9,1804.8,2.7946]
[1746421212454,4.31578,1805.0,1804.9,1.10803]
[1746421212648,6.02108,1805.0,1804.9,1.10803]
[1746421213457,4.9131,1805.0,1804.9,1.10803]
[1746421213654,6.02107,1805.0,1804.9,1.10803]
[1746421213954,6.02107,1805.0,1804.8,2.79455]
[1746421214154,1.7053,1804.9,1804.8,2.79455]
[1746421214858,1.7053,1804.9,1804.8,3.51336698]
[1746421218358,2.79915,1805.1,1805.0,1.10797]
[1746421218567,4.52245,1805.1,1805.0,1.10797]
[1746421219562,3.4145,1805.1,1805.0,1.10797]
[1746421219860,4.52241,1805.1,1805.0,1.10797]
[1746421220561,4.52241,1805.1,1805.0,1.82693714]
[1746421220762,4.52241,1805.1,1805.0,0.71896714]
[1746421222861,4.52241,1805.1,1804.9,2.82229]
[1746421223063,2.77727,1805.0,1804.9,2.82229]
[1746421223260,9.02690052,1805.2,1805.1,1.10791]
[1746421223461,5.81910052,1805.2,1805.1,1.10791]
[1746421223869,5.81910052,1805.2,1805.1,3.47118713]
[1746421224358,2.77714,1805.3,1805.2,1.10785]
[1746421224563,1.6693,1805.3,1805.2,2.75605]
[1746421225157,2.77709,1805.3,1805.2,2.75605]
[1746421225359,1.6693,1805.3,1805.2,2.75605]
[1746421225559,1.6693,1805.3,1805.2,3.47564836]
[1746421226966,2.77709,1805.3,1805.2,3.47564836]
[1746421227466,1.6693,1805.3,1805.2,3.47564836]
[1746421227864,5.81910052,1805.4,1805.3,1.10779]
[1746421228165,6.92683052,1805.4,1805.3,2.69849]
[1746421228365,8.62093052,1805.4,1805.2,4.25259836]
[1746421228567,2.5386,1805.3,1805.2,4.64085]
[1746421228975,3.64639,1805.3,1805.2,3.533]
[1746421229267,3.3458,1805.3,1805.2,5.36074228]
[1746421230474,4.31552,1805.5,1805.3,1.10774]
[1746421230670,5.95832,1805.5,1805.3,2.71154]
[1746421230870,1.6428,1805.4,1805.3,2.71154]
[1746421231069,2.75053,1805.4,1805.3,2.71154]
[1746421231271,2.75053,1805.4,1805.3,3.43143228]
[1746421231580,1.6428,1805.4,1805.3,3.43143228]
[1746421231869,2.75053,1805.4,1805.3,1.82763228]
[1746421232373,1.6428,1805.4,1805.3,1.82763228]
[1746421232872,1.6428,1805.4,1805.3,3.43143228]
[1746421234875,1.6428,1805.4,1805.3,1.82763228]
[1746421236075,1.6428,1805.4,1805.3,1.82744967]
[1746421237275,2.75053,1805.4,1805.3,1.82744967]
[1746421237475,1.6428,1805.4,1805.3,1.82744967]
[1746421238678,2.75053,1805.4,1805.3,1.82744967]
[1746421238976,1.6428,1805.4,1805.3,1.82744967]
[1746421240069,1.6919,1805.6,1805.5,1.10767]
[1746421240277,1.6919,1805.6,1805.5,7.84047]
[1746421240576,1.6919,1805.6,1805.5,8.56017967]
[1746421242177,2.7995,1805.6,1805.5,5.35237967]
[1746421242578,3.3721,1805.6,1805.5,5.35237967]
[1746421245373,3.3721,1805.6,1805.5,8.56017967]
[1746421245574,1.6802,1805.6,1805.5,8.56017967]
[1746421255481,1.6802,1805.6,1805.5,8.56018658]
[1746421257183,1.6726,1805.8,1805.7,1.10754]
[1746421257386,1.6726,1805.8,1805.7,4.31534]
[1746421257687,1.6726,1805.8,1805.7,5.03505658]
[1746421258484,1.6726,1805.8,1805.7,6.74815658]
[1746421258672,1.6726,1805.8,1805.7,3.54035658]
[1746421259483,1.6726,1805.8,1805.7,1.82725658]
[1746421260885,3.3915,1805.8,1805.7,1.82725658]
[1746421261987,1.7189,1805.8,1805.7,1.82725658]
[1746421262180,1.7189,1805.8,1805.7,3.45425658]
[1746421263074,1.7189,1805.8,1805.7,6.66205658]
[1746421268275,1.10765,1805.6,1805.4,1.10771]
[1746421268481,2.446,1805.5,1805.4,1.10773]
[1746421268986,3.55371,1805.5,1805.3,1.10774]
[1746421269188,2.4284,1805.4,1805.3,1.10774]
[1746421269689,1.5774,1805.4,1805.3,1.10774]
[1746421269884,1.5774,1805.4,1805.3,3.60814]
[1746421275190,2.4019,1805.4,1805.3,2.78464]
[1746421275387,2.4019,1805.4,1805.3,1.10774]
[1746421275697,2.4019,1805.4,1805.2,6.7318]
[1746421275698,3.50968,1805.4,1805.2,4.31561]
[1746421275883,2.82499,1805.3,1805.2,4.31561]
[1746421276084,1.7172,1805.3,1805.2,4.31561]
[1746421277289,2.82499,1805.3,1805.2,4.31561]
[1746421277488,1.7172,1805.3,1805.2,4.31561]
[1746421280394,1.7172,1805.3,1805.2,5.02883362]
[1746421281989,2.82499,1805.3,1805.2,5.02883362]
[1746421282792,7.82499,1805.3,1805.2,0.71322362]
[1746421282997,2.76971,1805.2,1804.8,7.85486]
[1746421283186,0.8554,1805.1,1804.8,3.539]
[1746421283391,1.10797,1805.0,1804.8,4.64708]
[1746421283594,1.7076,1804.9,1804.8,4.64708]
[1746421286100,2.5086,1804.9,1804.8,4.64708]
[1746421287806,3.61663,1804.9,1804.8,4.64708]
[1746421288102,3.61663,1804.9,1804.8,3.539]
[1746421289296,3.61663,1804.9,1804.8,4.6471]
[1746421289904,3.61663,1804.9,1804.8,3.539]
[1746421290503,1.1081,1804.8,1804.6,4.64819]
[1746421290703,3.6041,1804.8,1804.6,4.64819]
[1746421290906,1.7039,1804.7,1804.6,4.64819]
[1746421295119,1.7039,1804.7,1804.6,5.35033818]
[1746421295716,2.81206,1804.7,1804.6,0.70214818]
[1746421295914,2.81206,1804.7,1804.5,3.2078]
[1746421296112,2.449,1804.6,1804.5,4.31608]
[1746421296312,2.449,1804.6,1804.5,5.89058]
[1746421296513,2.449,1804.6,1804.5,5.01815675]
[1746421298716,3.55722,1804.6,1804.5,0.70207675]
[1746421299019,5.6568,1804.6,1804.2,1.1084]
[1746421299217,1.10837,1804.4,1804.2,1.1084]
[1746421299421,1.10837,1804.4,1804.3,1.1084]
[1746421299813,1.95922,1804.5,1804.3,1.1084]
[1746421301116,0.8509,1804.5,1804.4,1.10834]
[1746421301717,0.8509,1804.5,1804.4,1.81073605]
[1746421301918,5.81910052,1804.7,1804.6,1.10822]
[1746421302118,0.8408,1804.7,1804.6,1.10822]
[1746421302309,1.94896,1804.7,1804.6,1.10822]
[1746421302512,1.94896,1804.7,1804.5,1.10823]
[1746421302714,1.94896,1804.7,1804.6,1.10822]
[1746421306729,1.94896,1804.7,1804.5,1.10822]
[1746421307124,0.8408,1804.7,1804.4,5.9585]
[1746421307325,1.10822,1804.6,1804.5,1.81217117]
[1746421308825,1.10822,1804.6,1804.5,0.70393117]
[1746421309222,1.10822,1804.6,1804.5,1.81221117]
[1746421310027,1.10822,1804.6,1804.5,0.70393117]
[1746421311731,6.10822,1804.6,1804.5,0.70393117]
[1746421312125,1.10822,1804.6,1804.5,0.70393117]
[1746421312429,1.10834,1804.4,1804.3,3.2078]
[1746421313031,1.10832,1804.5,1804.3,5.02190614]
[1746421313231,1.10826,1804.6,1804.3,3.91355614]
[1746421313431,0.8408,1804.7,1804.6,1.10822]
[1746421313728,1.10799,1805.0,1804.9,1.10802]
[1746421313932,1.91959,1805.0,1804.9,0.70575614]
[1746421314230,1.91959,1805.0,1804.9,0.70514823]
[1746421314430,1.91959,1805.0,1804.9,0.70518295]
[1746421315631,1.91959,1805.0,1804.9,1.81321295]
[1746421316132,1.91959,1805.0,1804.9,0.70518295]
[1746421316327,2.77829,1805.0,1804.9,0.70518295]
[1746421318022,5.98609,1805.0,1804.9,0.70518295]
[1746421318629,7.61079,1805.0,1804.9,0.70518295]
[1746421318830,1.10816,1804.7,1804.6,1.10821]
[1746421319535,1.10814,1804.8,1804.6,1.81452139]
[1746421319723,2.73284,1804.8,1804.7,0.70631139]
[1746421322729,5.94064,1804.8,1804.7,0.70631139]
[1746421323634,4.8325,1804.8,1804.6,1.1082]
[1746421323837,1.695,1804.7,1804.6,1.1082]
[1746421324035,8.57775052,1804.9,1804.8,1.1081]
[1746421324237,8.57775052,1804.9,1804.8,0.7058733]
[1746421325536,8.57775052,1804.9,1804.8,1.8139733]
[1746421327038,8.57775052,1804.9,1804.8,0.7058733]
[1746421329339,8.57775052,1804.9,1804.8,1.8139733]
[1746421331139,6.60420052,1804.9,1804.8,1.8139733]
[1746421331331,7.71223052,1804.9,1804.8,1.8139733]
[1746421331527,9.44283052,1804.9,1804.8,1.8139733]
[1746421332042,8.33480052,1804.9,1804.8,1.8139733]
[1746421332240,5.81910052,1804.9,1804.8,1.8139733]
[1746421332440,5.81910052,1804.9,1804.8,2.6596733]
[1746421332642,7.54970052,1804.9,1804.8,2.6596733]
[1746421334237,8.65773052,1804.9,1804.8,2.6596733]
[1746421334434,7.54970052,1804.9,1804.8,2.6596733]
[1746421334844,1.7306,1804.9,1804.8,2.6596733]
[1746421336441,2.83863,1804.9,1804.8,2.6596733]
[1746421337037,2.83863,1804.9,1804.8,1.5515733]
[1746421337236,2.83863,1804.9,1804.8,0.7058733]
[1746421337742,2.83863,1804.9,1804.8,1.8139733]
[1746421339444,1.7306,1804.9,1804.8,1.8139733]
[1746421340940,4.8194,1805.1,1805.0,1.10797]
[1746421341141,4.8194,1805.1,1805.0,1.8138433]
[1746421343247,5.92731,1805.1,1805.0,1.8138433]
[1746421343633,4.8194,1805.1,1805.0,1.8138433]
[1746421343942,1.6116,1805.1,1805.0,1.8138433]
[1746421345042,9.02690052,1805.3,1805.2,1.10785]
[1746421345343,5.81910052,1805.3,1805.2,1.10785]
[1746421345747,7.47210052,1805.3,1805.2,1.8137233]
[1746421346349,1.653,1805.3,1805.2,3.4683233]
[1746421348448,0.8541,1805.4,1805.3,1.10779]
[1746421348645,2.5294,1805.4,1805.3,2.76239]
[1746421348846,2.5294,1805.4,1805.3,3.4682633]
[1746421350141,1.6753,1805.4,1805.3,3.4682633]
[1746421350352,0.8243,1805.6,1805.5,1.10767]
[1746421350549,2.4593,1805.6,1805.5,1.10767]
[1746421350757,0.8243,1805.8,1805.7,1.10754]
[1746421351049,0.8243,1805.8,1805.7,1.81193213]
[1746421351247,2.4593,1805.8,1805.7,1.81193213]
[1746421352453,2.4593,1805.8,1805.7,1.10754]
[1746421352653,2.4593,1805.8,1805.7,1.81120695]
[1746421352854,2.4593,1805.8,1805.7,3.39010695]
[1746421357460,2.4593,1805.8,1805.7,1.10754]
[1746421357759,3.3108,1805.8,1805.7,1.10754]
[1746421359458,4.41828,1805.8,1805.7,1.10754]
[1746421359959,1.10754,1805.7,1805.6,3.2078]
[1746421360156,2.84334,1805.7,1805.6,3.2078]
[1746421361365,2.84334,1805.7,1805.6,4.3154]
[1746421361554,2.84334,1805.7,1805.6,1.1076]
[1746421362064,1.1076,1805.6,1805.5,4.67263]
[1746421362259,2.7671,1805.6,1805.5,3.565]
[1746421363257,1.10772,1805.5,1805.3,1.10775]
[1746421363458,1.10773,1805.4,1805.2,1.1078]
[1746421363659,1.6595,1805.3,1805.2,1.1078]
[1746421364259,1.6595,1805.3,1805.2,1.80923854]
[1746421364965,1.6595,1805.3,1805.2,1.1078]
[1746421366365,2.76729,1805.3,1805.2,1.1078]
[1746421366565,1.10785,1805.2,1805.1,4.66388]
[1746421366766,3.239,1805.2,1805.1,5.36576197]
[1746421367866,3.239,1805.2,1805.1,4.66388]
[1746421369163,3.239,1805.2,1805.1,5.36613295]
[1746421369367,3.239,1805.2,1805.1,5.36634139]
[1746421375268,6.92681052,1805.5,1805.4,1.10773]
[1746421375269,5.81910052,1805.5,1805.4,1.10773]
[1746421375467,7.40450052,1805.5,1805.4,1.10773]
[1746421375673,7.40450052,1805.5,1805.4,1.81019139]
[1746421378972,1.5854,1805.5,1805.4,1.81019139]
[1746421383478,1.6507,1805.6,1805.5,1.10767]
[1746421383880,1.6507,1805.6,1805.5,1.81013139]
[1746421384079,1.718,1805.7,1805.6,1.1076]
[1746421384474,1.718,1805.7,1805.6,1.81006139]
[1746421386379,2.82554,1805.7,1805.6,1.81006139]
[1746421386581,1.718,1805.7,1805.6,1.81006139]
[1746421391687,2.82554,1805.7,1805.6,1.81006139]
[1746421391888,2.82554,1805.7,1805.6,0.70246139]
[1746421392189,6.03334,1805.7,1805.6,0.70246139]
[1746421392689,1.10765,1805.6,1805.4,4.66368]
[1746421392892,1.6828,1805.5,1805.4,4.66368]
[1746421393089,2.79047,1805.5,1805.4,5.36791559]
[1746421393286,3.2931,1805.5,1805.4,5.36791559]
[1746421395191,4.40077,1805.5,1805.4,5.36791559]
[1746421396697,3.2931,1805.5,1805.4,5.36791559]
[1746421397597,4.40077,1805.5,1805.4,5.36791559]
[1746421401903,4.40077,1805.5,1805.4,4.26023559]
[1746421404005,4.40077,1805.5,1805.4,0.70423559]
[1746421404204,3.2931,1805.5,1805.4,1.81196559]
[1746421404708,4.40077,1805.5,1805.4,1.81196559]
[1746421406206,4.40077,1805.5,1805.4,0.70423559]
[1746421407404,7.60857,1805.5,1805.4,0.70423559]
[1746421408403,4.40077,1805.5,1805.4,0.70423559]
[1746421411010,1.10777,1805.4,1805.2,1.10781]
[1746421411202,2.82007,1805.4,1805.2,1.10781]
[1746421411611,2.82007,1805.4,1805.3,0.7051378]
[1746421411909,2.82007,1805.4,1805.3,1.8129278]
[1746421412903,2.82007,1805.4,1805.3,0.7051378]
[1746421414602,2.82007,1805.4,1805.3,1.8129278]
[1746421421416,2.82007,1805.4,1805.3,0.7051378]
[1746421426918,2.82007,1805.4,1805.3,1.8129278]
[1746421431223,1.7123,1805.4,1805.3,1.8129278]
[1746421432725,2.82003,1805.4,1805.3,1.8129278]
[1746421437028,1.7123,1805.4,1805.3,1.8129278]
[1746421437219,1.7123,1805.4,1805.3,3.4135278]
[1746421445238,6.92674052,1805.6,1805.3,2.3057378]
[1746421445447,8.37120052,1805.6,1805.5,1.10767]
[1746421445741,2.5521,1805.6,1805.5,1.8128078]
[1746421445947,9.19621467,1805.8,1805.5,0.7051378]
[1746421446134,9.19621467,1805.8,1805.7,1.10754]
[1746421446333,9.19621467,1805.8,1805.7,1.8126778]
[1746421446536,9.19621467,1805.8,1805.7,3.5235778]
[1746421449637,9.19621467,1805.8,1805.7,4.3541778]
[1746421450037,3.358,1805.9,1805.8,1.10748]
[1746421450342,3.358,1805.9,1805.8,1.8126178]
[1746421450844,4.46542,1805.9,1805.8,0.7051378]
[1746421451544,2.76871,1805.8,1805.2,11.06398736]
[1746421451746,4.31548,1805.5,1805.4,1.10771]
[1746421452045,1.10773,1805.4,1805.3,8.45208199]
[1746421452244,3.59043,1805.4,1805.3,8.45208199]
[1746421452545,3.59043,1805.4,1805.3,1.10775]
[1746421453045,2.4827,1805.4,1805.3,1.10775]
[1746421455233,3.3338,1805.4,1805.3,1.10775]
[1746421455843,4.44153,1805.4,1805.3,1.10775]
[1746421456438,3.3338,1805.4,1805.1,3.542]
[1746421456637,2.79513,1805.3,1805.1,4.64986]
[1746421456843,1.6873,1805.2,1805.1,4.64986]
[1746421459043,1.6873,1805.2,1805.1,3.542]
[1746421459343,1.10794,1805.1,1804.8,12.57723199]
[1746421459544,2.5166,1805.0,1804.9,1.10803]
[1746421459945,1.7165,1805.0,1804.9,2.80393]
[1746421460748,0.8001,1805.2,1805.1,1.10791]
[1746421460940,1.7165,1805.2,1805.1,1.10791]
[1746421461446,1.7165,1805.2,1805.1,2.80381]
[1746421461649,1.7165,1805.2,1805.1,6.01161]
[1746421462753,1.7165,1805.2,1805.1,1.10791]
[1746421463742,2.82435,1805.2,1805.1,1.10791]
[1746421464452,2.82435,1805.2,1805.0,1.10793]
[1746421464751,2.4439,1805.1,1805.0,1.10793]
[1746421478557,2.4439,1805.1,1804.8,3.537]
[1746421478757,2.5039,1805.0,1804.9,1.10803]
[1746421479260,2.5039,1805.0,1804.9,5.90123]
[1746421481560,2.5039,1805.0,1804.9,2.69343]
[1746421481753,2.5039,1805.0,1804.9,1.10803]
[1746421501467,5.81910052,1805.3,1805.2,1.10785]
[1746421502863,1.5962,1805.4,1805.3,1.10779]
[1746421503072,1.5962,1805.4,1805.3,3.64089]
[1746421503366,2.422,1805.4,1805.3,1.95619]
[1746421503571,3.2741,1805.4,1805.3,1.95619]
[1746421506167,2.422,1805.4,1805.3,1.95619]
[1746421506378,1.5962,1805.4,1805.3,3.60629]
[1746421507275,1.6735,1805.7,1805.4,1.10773]
[1746421507476,1.5913,1805.6,1805.5,4.31547]
[1746421507673,5.81910052,1805.8,1805.7,1.10754]
[1746421507862,3.2556,1805.9,1805.8,1.10746]
[1746421508069,1.6643,1805.9,1805.8,1.10746]
[1746421511879,2.77172,1805.9,1805.5,4.31547]
[1746421512277,1.6643,1805.9,1805.8,1.10748]
[1746421519176,3.3246,1805.9,1805.8,1.10748]
[1746421519879,4.43202,1805.9,1805.8,1.10748]
[1746421521779,7.63982,1805.9,1805.8,1.10748]
[1746421522077,6.5324,1805.9,1805.8,1.10748]
[1746421522379,7.63982,1805.9,1805.8,1.10748]
[1746421525983,1.10749,1805.8,1805.7,1.1075]
[1746421526182,2.82729,1805.8,1805.7,1.1075]
[1746421526583,1.7198,1805.8,1805.7,1.1075]
[1746421537089,2.82728,1805.8,1805.7,1.1075]
[1746421538090,1.7198,1805.8,1805.7,1.1075]
[1746421539895,1.1076,1805.6,1805.5,3.2078]
[1746421540198,6.63810052,1805.7,1805.4,3.532]
[1746421540388,0.836,1805.5,1805.4,3.532]
[1746421540797,1.655,1805.5,1805.4,4.63971]
[1746421541696,2.76267,1805.5,1805.4,4.63971]
[1746421541896,4.49047,1805.5,1805.4,4.63971]
[1746421542099,3.3828,1805.5,1805.4,4.63971]
[1746421543801,4.49047,1805.5,1805.4,4.63971]
[1746421543998,4.49047,1805.5,1805.4,3.532]
[1746421544595,4.49047,1805.5,1805.2,6.4412]
[1746421544596,1.10775,1805.4,1805.2,2.4397]
[1746421544795,2.83555,1805.4,1805.2,3.54749]
[1746421544991,0.8116,1805.3,1805.2,1.93139]
[1746421545192,2.5143,1805.3,1805.2,1.93139]
[1746421545998,3.62209,1805.3,1805.2,1.93139]
[1746421546198,2.5143,1805.3,1805.2,1.93139]
[1746421546399,3.62209,1805.3,1805.2,1.93139]
[1746421546602,2.5143,1805.3,1805.2,1.93139]
[1746421550204,3.62209,1805.3,1805.2,1.10779]
[1746421550702,2.5143,1805.3,1805.2,1.10779]
[1746421551499,1.10785,1805.2,1805.1,3.53]
[1746421551696,1.10791,1805.1,1804.8,14.94383199]
[1746421551899,1.7156,1805.0,1804.9,1.10798]
[1746421552499,1.7156,1805.0,1804.8,14.08313199]
[1746421552701,1.95753,1804.9,1804.8,3.531]
[1746421553701,1.95753,1804.9,1804.8,4.6391]
[1746421553998,1.95753,1804.9,1804.8,3.531]
[1746421554499,1.1081,1804.8,1804.7,7.34433199]
[1746421554696,3.6553,1804.8,1804.7,7.34433199]
[1746421556201,3.6553,1804.8,1804.6,1.10817]
[1746421556401,1.724,1804.7,1804.6,1.10817]
[1746421557293,1.724,1804.7,1804.6,2.84967]
[1746421564511,0.8495,1804.9,1804.8,1.1081]
[1746421564806,2.5645,1804.9,1804.8,1.1081]
[1746421567404,2.5645,1804.9,1804.8,2.811]
[1746421567712,3.67253,1804.9,1804.8,2.811]
[1746421568012,2.5645,1804.9,1804.7,0.8476]
[1746421568210,1.5985,1804.8,1804.7,1.95576]
[1746421568710,2.4185,1804.8,1804.7,1.95576]
[1746421569816,2.4185,1804.8,1804.7,1.10816]
[1746421573219,3.5266,1804.8,1804.7,1.10816]
[1746421573508,2.4185,1804.8,1804.7,1.10816]
[1746421575215,3.5266,1804.8,1804.7,1.10816]
[1746421575924,2.4185,1804.8,1804.7,1.10816]
[1746421586427,1.5985,1804.8,1804.7,1.10816]
[1746421586828,1.5985,1804.8,1804.7,2.76256]
[1746421598141,1.5985,1804.8,1804.7,1.10816]
[1746421605351,4.67566052,1805.0,1804.9,1.10803]
[1746421605648,10.84401467,1805.2,1805.1,1.10791]
[1746421605948,10.84401467,1805.2,1805.1,4.31571]
[1746421606343,10.84401467,1805.2,1805.1,5.98001]
[1746421607242,9.19621467,1805.2,1805.1,5.98001]
[1746421607445,11.04343043,1805.5,1805.4,1.10773]
[1746421607742,0.79580192,1805.5,1805.4,7.84453]
[1746421607948,0.79580192,1805.5,1805.4,12.84453]
[1746421608147,0.79580192,1805.5,1805.4,16.57653]
[1746421608347,1.92e-06,1805.5,1805.4,16.57653]
[1746421608943,1.6353,1805.9,1805.4,16.57653]
[1746421609137,1.6353,1805.9,1805.8,1.10748]
[1746421609342,1.6353,1805.9,1805.8,4.63548]
[1746421609745,0.81607909,1806.2,1806.1,1.1073]
[1746421609946,2.55137909,1806.2,1806.1,1.1073]
[1746421610449,2.55137909,1806.2,1806.0,1.10733]
[1746421610747,1.7353,1806.1,1806.0,1.10733]
[1746421611744,1.10739,1806.0,1805.8,3.528]
[1746421611947,2.84272,1805.9,1805.8,3.528]
[1746421612149,2.84272,1805.9,1805.6,1.10758]
[1746421612450,1.5905,1805.8,1805.6,1.10758]
[1746421612749,2.4407,1805.8,1805.7,1.10754]
[1746421612950,2.4407,1805.8,1805.6,1.10756]
[1746421613138,1.5905,1805.7,1805.6,1.10756]
[1746421620656,1.5921,1806.0,1805.9,1.10742]
[1746421620951,3.2063,1806.0,1805.9,1.10742]
[1746421621249,3.2063,1806.0,1805.9,4.31522]
[1746421621456,1.6142,1806.0,1805.9,6.79752]
[1746421622854,0.01387909,1806.2,1806.1,1.1073]
[1746421623155,0.01387909,1806.2,1806.1,4.6343]
[1746421623554,0.01387909,1806.2,1806.1,9.6343]
[1746421623752,9.09e-06,1806.2,1806.1,12.8421]
[1746421623952,0.01204591,1806.5,1806.4,1.10711]
[1746421623953,0.011255,1806.5,1806.4,1.10711]
[1746421624160,0.011255,1806.5,1806.4,7.84191]
[1746421624355,0.011255,1806.5,1806.4,12.84191]
[1746421624655,0.011255,1806.5,1806.4,7.84191]
[1746421624848,0.011255,1806.5,1806.4,8.70871]
[1746421625253,5e-06,1806.5,1806.4,15.42031]
[1746421625455,5e-06,1806.5,1806.4,16.27171]
[1746421625652,5e-06,1806.5,1806.4,11.27171]
[1746421629560,1.6023,1806.8,1806.7,1.10693]
[1746421629760,2.7092,1806.8,1806.7,3.526]
[1746421629952,1.6023,1806.8,1806.7,4.63293]
[1746421630149,7.70917,1806.8,1806.7,3.526]
[1746421630355,10.91697,1806.8,1806.7,3.526]
[1746421631359,1.10705,1806.6,1806.4,3.526]
[1746421631558,3.3654,1806.5,1806.4,3.526]
[1746421631753,4.47245,1806.5,1806.4,3.526]
[1746421632165,3.3654,1806.5,1806.4,4.63311]
[1746421642383,4.47245,1806.5,1806.4,4.63311]
[1746421642671,3.3654,1806.5,1806.4,4.63311]
[1746421644379,4.47245,1806.5,1806.4,4.63311]
[1746421644583,4.47245,1806.5,1806.4,3.526]
[1746421648485,4.47245,1806.5,1806.4,4.63311]
[1746421651179,3.3654,1806.5,1806.4,4.63311]
[1746421651686,2.5438,1806.5,1806.4,5.43221]